Cogmind - Beta 15 *** ADVENTURER MODE // 2025.05.24 @ 17:25:34 Player: Jack Result: Self-destructed Performance ------------- Evolutions (5) 2500 Regions Visited (7) 1400 Robots Destroyed (82) 410 Value Destroyed (2744) 2744 Prototype IDs (0) 0 Alien Tech Used (0) 0 Bonus (200) 200 TOTAL SCORE: 7254 Bonus ------- Pacifist 200 Cogmind --------- Core Integrity 941/1000 Matter 281/300 Energy 46/100 System Corruption 0% Temperature Cool (0) Movement Treading (160) Location -5/Factory Parts ------- > --- POWER (1) -------- (None) > --- PROPULSION (4) --- Improved Medium Treads > --- UTILITY (6) ------ Heat Sink Improved Heat Sink Improved Heat Sink Advanced Heat Sink Advanced Heat Sink Coolant Injector > --- WEAPON (6) ------- Beam Rifle Particle Gun Gauss Rifle Heavy Machine Gun > --- INVENTORY (5) ---- Deuterium Engine Light Nuclear Core Improved Heat Sink Particle Gun Phase Cannon Peak State ------------ > --- POWER ------------ Deuterium Engine > --- PROPULSION ------- Light Treads Light Treads Improved Medium Treads > --- UTILITY ---------- Heat Sink Improved Heat Sink Improved Heat Sink Advanced Heat Sink Advanced Heat Sink Coolant Injector > --- WEAPON ----------- Beam Rifle Particle Gun Variable Charge Gun Ion Cannon Gauss Rifle Heavy Machine Gun > --- INVENTORY -------- Deuterium Engine Light Nuclear Core Improved Heat Sink Particle Gun Phase Cannon [Rating: 54] Favorites ----------- Power Deuterium Engine Engine Deuterium Engine Power Core Light Nuclear Core Propulsion Light Treads Treads Light Treads Utility Improved Heat Sink Device Improved Heat Sink Weapon Beam Rifle Energy Gun Beam Rifle Energy Cannon Ion Cannon Ballistic Gun Assault Rifle Build | -11 -10 -10 -9 -8 -7 -6 -5 ------- Run | Yrd Mat Min Mat Mat Fac Fac Fac Slots Evolved 10 | . . . 2 2 2 2 2 Power . | . . . . . . . . Propulsion 2 | . . . . . . 2 . Utility 4 | . . . . . 2 . 2 Weapon 4 | . . . 2 2 . . . Parts Attached 39 | . . . 10 14 10 2 3 Power 6 | . . . 1 3 2 . . Engine 3 | . . . 1 1 1 . . Core 3 | . . . . 2 1 . . Reactor . | . . . . . . . . Propulsion 7 | . . . 3 2 1 1 . Treads 7 | . . . 3 2 1 1 . Leg . | . . . . . . . . Wheel . | . . . . . . . . Hover . | . . . . . . . . Flight . | . . . . . . . . Utility 6 | . . . 1 1 2 . 2 Device 6 | . . . 1 1 2 . 2 Storage . | . . . . . . . . Processor . | . . . . . . . . Hackware . | . . . . . . . . Protection . | . . . . . . . . Artifact . | . . . . . . . . Weapon 20 | . . . 5 8 5 1 1 Energy Gun 9 | . . . 1 3 4 . 1 Energy Cannon 1 | . . . . 1 . . . Ballistic Gun 10 | . . . 4 4 1 1 . Ballistic Cannon . | . . . . . . . . Launcher . | . . . . . . . . Special Weapon . | . . . . . . . . Impact Weapon . | . . . . . . . . Slashing Weapon . | . . . . . . . . Piercing Weapon . | . . . . . . . . Special Melee Weapon . | . . . . . . . . Unidentified Prototypes . | . . . . . . . . Parts Lost 7 | . . . . 2 . . 5 Power 2 | . . . . 1 . . 1 Propulsion 2 | . . . . . . . 2 Utility . | . . . . . . . . Weapon 3 | . . . . 1 . . 2 Highest Loss Streak 2 | . . . . 1 . . 2 To Critical Strikes . | . . . . . . . . Average Backups 4 | . 3 3 2 4 4 4 5 Power . | . . . . . . 2 2 Propulsion . | . . . . 2 1 . . Utility . | . . . . . . 1 1 Weapon 2 | . 3 3 2 2 1 1 2 Tool/Special . | . . . . . . . . Unused Backups 4 | . . . . 1 . . 3 Power 1 | . . . . . . . 1 Propulsion . | . . . . . . . . Utility 1 | . . . . . . . 1 Weapon 2 | . . . . 1 . . 1 Tool/Special . | . . . . . . . . Average Slot Usage (%) 83 | . . . 73 97 94 91 86 Engine 5 | . . . 7 6 6 6 4 Treads 15 | . . . 18 18 15 18 14 Device 19 | . . . 7 16 24 26 30 Energy Gun 18 | . . . 9 25 22 20 16 Energy Cannon 3 | . . . . . 7 6 4 Ballistic Gun 17 | . . . 29 27 15 13 11 Peak Build Rating 54 | . . . 10 24 33 40 54 Average Rating 25 | . . . 8 19 29 37 48 On Entrance 12 | . . . . 10 22 31 40 Naked Turns 270 | . 33 223 14 . . . . Heaviest Build 41 | . . . 13 24 34 37 41 Greatest Support 70 | 3 3 3 40 42 42 70 70 Greatest Overweight (x) 2 | . . . 2 . . . 1 Average Overweight (x) . | . . . . . . . . Largest Inventory Capacity 5 | 5 5 5 5 5 5 5 5 Average Capacity 5 | 5 5 5 5 5 5 5 5 Most Carried 5 | 3 3 4 5 5 5 5 5 Average Carried 4 | 1 3 3 2 4 4 4 4 Final Capacity 5 | 5 5 5 5 5 5 5 5 Final Carried 5 | 3 3 4 5 4 5 5 5 Class Distribution -------------------- 82% | Scavenger-Executioner 9% | Mutant 6% | Scavenger-Gunner Dominant Class ---------------- Mutant | -10/Materials Mutant | -10/Mines Scavenger-Gunner | -9/Materials Scavenger-Executioner | -8/Materials Scavenger-Executioner | -7/Factory Scavenger-Executioner | -6/Factory Scavenger-Executioner | -5/Factory Resources | -11 -10 -10 -9 -8 -7 -6 -5 ----------- Run | Yrd Mat Min Mat Mat Fac Fac Fac Matter Collected 1491 | 200 . . 209 533 243 75 231 Remotely . | . . . . . . . . Salvage Created 3471 | . . . 371 1323 675 172 930 Parts 150 | . . . 21 64 30 4 31 Haulers Intercepted 1 | . . . . . 1 . . Recyclers Shooed 1 | . . . . . . . 1 Parts Field Recycled . | . . . . . . . . Retrieved Matter . | . . . . . . . . Parts Self-Destructed . | . . . . . . . . Prevented . | . . . . . . . . Kills | -11 -10 -10 -9 -8 -7 -6 -5 ------- Run | Yrd Mat Min Mat Mat Fac Fac Fac Combat Hostiles Destroyed 62 | . . . 9 23 8 1 21 Guns 56 | . . . 9 21 6 1 19 Cannons 5 | . . . . 1 2 . 2 Classes Destroyed 13 | . . . 5 6 2 . . Worker 4 | . . . 1 2 . 1 . Builder 3 | . . . . 1 2 . . Tunneler 1 | . . . . 1 . . . Hauler 1 | . . . . . 1 . . Recycler 4 | . . . . 1 2 1 . Operator 1 | . . . . 1 . . . Watcher 6 | . . . 1 4 1 . . Swarmer 18 | . . . 4 5 . . 9 Grunt 30 | . . . 2 12 5 . 11 Brawler 1 | . . . . 1 . . . Sentry 7 | . . . 3 3 1 . . Hunter 3 | . . . . 2 . . 1 Programmer 3 | . . . . . 2 1 . Best Kill Streak 6 | . . . 3 5 3 3 6 Combat Bots Only 6 | . . . 2 3 3 1 6 Max Kills in Single Turn 2 | . . . 1 2 1 2 2 Gunslinging 1 | . . . . 1 . . 1 Exploded . | . . . . . . . . Melee . | . . . . . . . . Uniques/NPCs Destroyed . | . . . . . . . . Combat | -11 -10 -10 -9 -8 -7 -6 -5 -------- Run | Yrd Mat Min Mat Mat Fac Fac Fac Hostile Shots Fired 283 | . 1 . 22 117 45 2 96 Missed 81 | . 1 . 7 25 19 . 29 Hits 202 | . . . 15 92 26 2 67 Projectile 202 | . . . 15 92 26 2 67 Critical Strikes 6 | . . . . 5 . . 1 Part Disruptions 1 | . . . . 1 . . . Damage Taken 2401 | . . . 120 1099 196 86 900 Core 237 | . . . 12 95 8 63 59 Absorbed by Shields . | . . . . . . . . Ignored by Resistances 689 | . . . 37 311 64 22 255 Core Remaining (%) 94 | 100 . 100 97 82 98 92 . Volleys Fired 116 | . . . 18 48 18 2 30 Largest 6 | . . . 4 6 6 6 6 Hottest 314 | . . . 119 243 294 304 314 Shots Fired 639 | . . . 71 278 107 12 171 Gun 593 | . . . 71 276 89 10 147 Cannon 46 | . . . . 2 18 2 24 Launcher . | . . . . . . . . Special . | . . . . . . . . Kinetic 296 | . . . 54 142 36 4 60 Thermal 343 | . . . 17 136 71 8 111 Explosive . | . . . . . . . . Electromagnetic . | . . . . . . . . Robot Hit Streak 36 | . . . 17 36 17 15 24 Robot Miss Streak 4 | . . . 4 3 2 1 2 Penetration Max 1 | . . . . . . 1 1 Secondary Targets 13 | . . . . 11 . . 2 Max Gunslinging Chain 2 | . . . . 2 . . 1 Shots Hit Robots 413 | . . . 42 183 62 9 117 Core Hits 172 | . . . 17 71 27 6 51 Critical Kills 2 | . . . . 2 . . . Critical Parts Destroyed 1 | . . . 1 . . . . Critical Strikes 16 | . . . 1 9 3 1 2 Burn 13 | . . . . 7 3 1 2 Destroy 3 | . . . 1 2 . . . Melee Attacks . | . . . . . . . . Impact . | . . . . . . . . Slashing . | . . . . . . . . Piercing . | . . . . . . . . Sneak Attacks . | . . . . . . . . Combat Hostiles . | . . . . . . . . Follow-up Attacks . | . . . . . . . . Damage Inflicted 6665 | . . . 557 2524 1020 191 2373 Guns 5996 | . . . 557 2476 794 142 2027 Cannons 669 | . . . . 48 226 49 346 Explosions . | . . . . . . . . Melee . | . . . . . . . . Ramming . | . . . . . . . . Kinetic 2316 | . . . 396 950 172 64 734 Thermal 4349 | . . . 161 1574 848 127 1639 Explosive . | . . . . . . . . Electromagnetic . | . . . . . . . . Impact . | . . . . . . . . Slashing . | . . . . . . . . Piercing . | . . . . . . . . Highest Corruption 2 | . . . . 2 2 1 . Average Corruption 1 | . . . . 1 1 1 . Corruption Purged . | . . . . . . . . Corruption Blocked . | . . . . . . . . Effects 11 | . . . . 6 5 . . Message Errors 2 | . . . . 2 . . . Matter Fused 5 | . . . . 1 4 . . Energy Discharges 2 | . . . . 2 . . . Data Loss (minor) 1 | . . . . 1 . . . Data Loss (major) 1 | . . . . . 1 . . Overload Shots . | . . . . . . . . Overflow Damage 29 | . . . . . 8 . 21 Projectiles 29 | . . . . . 8 . 21 Explosions . | . . . . . . . . Melee . | . . . . . . . . Knockbacks . | . . . . . . . . Impact . | . . . . . . . . Kinetic . | . . . . . . . . Secondary . | . . . . . . . . Self-Inflicted Damage . | . . . . . . . . Shots . | . . . . . . . . Rammed . | . . . . . . . . Targets Rammed . | . . . . . . . . Kicked . | . . . . . . . . Crushed . | . . . . . . . . Highest Temperature 379 | . . . 63 379 93 96 153 Average Temperature 71 | . . . 22 100 30 54 42 Received Heat Transfer 1036 | . . . 42 585 93 . 316 Effects 7 | . . . . 7 . . . Energy Bleed 1 | . . . . 1 . . . Interference 6 | . . . . 6 . . . Siege Activations . | . . . . . . . . Martial Activations . | . . . . . . . . Shielding Activations . | . . . . . . . . Robots Disrupted . | . . . . . . . . Combat Hostiles . | . . . . . . . . Robots Corrupted . | . . . . . . . . Combat Hostiles . | . . . . . . . . Parts Fried . | . . . . . . . . Impact Corruptions . | . . . . . . . . Robots Melted 1 | . . . . 1 . . . Combat Hostiles 1 | . . . . 1 . . . Parts Melted 27 | . . . . 9 4 4 10 Heat Transferred 10639 | . . . 407 4349 2109 333 3441 Parts Sabotaged . | . . . . . . . . Parts Stolen . | . . . . . . . . Parts Stripped . | . . . . . . . . Power Chain Reactions . | . . . . . . . . Alert | -11 -10 -10 -9 -8 -7 -6 -5 ------- Run | Yrd Mat Min Mat Mat Fac Fac Fac Maximum Alert Level 1 | . . . . 1 . . 1 Low Security (%) 85 | 100 100 100 100 46 100 100 95 Level 1 14 | . . . . 53 . . 4 Level 2 . | . . . . . . . . Level 3 . | . . . . . . . . Level 4 . | . . . . . . . . Level 5 . | . . . . . . . . High Security . | . . . . . . . . Max Security . | . . . . . . . . Peak Influence 324 | . 45 14 143 324 106 39 279 Initial 106 | . . 14 . 43 106 25 7 Average 69 | . 15 1 53 180 25 4 80 Influence Increases 1733 | . 45 . 263 639 248 49 489 Destroy 0b10 Robot/C 1240 | . . . 180 460 160 20 420 Destroy 0b10 Robot/NC 100 | . . . 10 50 30 10 . Destroy Leader 264 | . . . 42 108 54 10 50 Disable Machine 18 | . . . . . . 9 9 Destroy Structure 21 | . . . 1 6 4 . 10 Lose Combat Pursuer 90 | . 45 . 30 15 . . . Influence Decreases 1454 | . . 45 140 488 461 91 229 Entered New Map 327 | . . 31 . 80 168 36 12 Time Decay 1057 | . . 14 140 388 293 55 167 Lost Part 70 | . . . . 20 . . 50 Squads Dispatched 9 | . . . . 3 4 2 . Investigation 2 | . . . . . 1 1 . Extermination 3 | . . . . . 2 1 . Reinforcement 4 | . . . . 3 1 . . Assault . | . . . . . . . . Garrison . | . . . . . . . . Intercept . | . . . . . . . . Searches Triggered . | . . . . . . . . Construction Impeded . | . . . . . . . . Haulers Reinforced . | . . . . . . . . Active Scanning Responses . | . . . . . . . . Cargo Convoy Interrupts . | . . . . . . . . Stealth | -11 -10 -10 -9 -8 -7 -6 -5 --------- Run | Yrd Mat Min Mat Mat Fac Fac Fac Distress Signals 14 | . 1 . 3 7 1 . 2 Communications Jammed . | . . . . . . . . Distress Signals . | . . . . . . . . Times Spotted 84 | . 2 . 14 35 10 1 22 Peak Tracking Total 7 | . 4 . 4 7 3 1 5 Tactical Retreats 3 | . 1 . 1 1 . . . Traps | -11 -10 -10 -9 -8 -7 -6 -5 ------- Run | Yrd Mat Min Mat Mat Fac Fac Fac Traps Triggered 4 | . . . . 3 . 1 . Indirectly . | . . . . . . . . Trap Hack Attempts . | . . . . . . . . Triggered . | . . . . . . . . Disarmed . | . . . . . . . . Reprogrammed . | . . . . . . . . Reused . | . . . . . . . . Traps Extracted . | . . . . . . . . Installed . | . . . . . . . . Triggered . | . . . . . . . . Machines | -11 -10 -10 -9 -8 -7 -6 -5 ---------- Run | Yrd Mat Min Mat Mat Fac Fac Fac Machines Disabled 2 | . . . . . . 1 1 Max in Single Turn 1 | . . . . . . 1 1 Machines Repaired . | . . . . . . . . Machines Dismantled . | . . . . . . . . Machines Sabotaged . | . . . . . . . . Overloaded Fab Kills . | . . . . . . . . Hacking | -11 -10 -10 -9 -8 -7 -6 -5 --------- Run | Yrd Mat Min Mat Mat Fac Fac Fac Machines Accessed 2 | . . . . . 1 1 . Terminals 2 | . . . . . 1 1 . Fabricators . | . . . . . . . . Repair Stations . | . . . . . . . . Recycling Units . | . . . . . . . . Scanalyzers . | . . . . . . . . Garrison Access . | . . . . . . . . Total Hacks 4 | . . . . . 2 2 . Successful . | . . . . . . . . Failed 4 | . . . . . 2 2 . Catastrophic 3 | . . . . . 2 1 . Database Lockouts . | . . . . . . . . Manual 2 | . . . . . . 2 . Terminals 4 | . . . . . 2 2 . Fabricators . | . . . . . . . . Repair Stations . | . . . . . . . . Recycling Units . | . . . . . . . . Scanalyzers . | . . . . . . . . Garrison Access . | . . . . . . . . Terminal Hacks . | . . . . . . . . Fabricator Hacks . | . . . . . . . . Repair Station Hacks . | . . . . . . . . Recycling Unit Hacks . | . . . . . . . . Scanalyzer . | . . . . . . . . Garrison Access Hacks . | . . . . . . . . Unauthorized Hacks . | . . . . . . . . Terminals . | . . . . . . . . Fabricators . | . . . . . . . . Repair Stations . | . . . . . . . . Recycling Units . | . . . . . . . . Scanalyzers . | . . . . . . . . Garrison Access . | . . . . . . . . Data Cores Recovered . | . . . . . . . . Used . | . . . . . . . . Hacking Detections 2 | . . . . . 1 1 . Full Trace Events 2 | . . . . . 1 1 . Feedback Events 1 | . . . . . 1 . . Corruption 1 | . . . . . 1 . . Feedback Blocked . | . . . . . . . . Robot Schematics Acquired . | . . . . . . . . Robots Built . | . . . . . . . . Authchips . | . . . . . . . . Time . | . . . . . . . . Total Robot Build Rating . | . . . . . . . . Part Schematics Acquired . | . . . . . . . . Parts Built . | . . . . . . . . Authchips . | . . . . . . . . Time . | . . . . . . . . Total Part Build Rating . | . . . . . . . . Parts Repaired . | . . . . . . . . Time . | . . . . . . . . Parts Recycled . | . . . . . . . . Recycled Matter . | . . . . . . . . Retrieved Matter . | . . . . . . . . Retrieved Components . | . . . . . . . . Parts Scanalyzed . | . . . . . . . . Part Schematics Acquired . | . . . . . . . . Parts Damaged . | . . . . . . . . Bothacking | -11 -10 -10 -9 -8 -7 -6 -5 ------------ Run | Yrd Mat Min Mat Mat Fac Fac Fac Used RIF Installer . | . . . . . . . . Robots Hacked . | . . . . . . . . Non-combat . | . . . . . . . . Combat . | . . . . . . . . Robot Hacks Applied . | . . . . . . . . Relay Couplers Released . | . . . . . . . . Fabnet Peak Effective % . | . . . . . . . . Robots Rewired . | . . . . . . . . Allies Hacked . | . . . . . . . . Hacks Repelled . | . . . . . . . . Allies | -11 -10 -10 -9 -8 -7 -6 -5 -------- Run | Yrd Mat Min Mat Mat Fac Fac Fac Total Allies . | . . . . . . . . Largest Group . | . . . . . . . . Highest-Rated Group . | . . . . . . . . Highest-Rated Ally . | . . . . . . . . Total Orders . | . . . . . . . . Ally Attacks . | . . . . . . . . Total Damage . | . . . . . . . . Kills . | . . . . . . . . Allies Corrupted . | . . . . . . . . Allies Melted . | . . . . . . . . Intel | -11 -10 -10 -9 -8 -7 -6 -5 ------- Run | Yrd Mat Min Mat Mat Fac Fac Fac Active Infowar (turns) . | . . . . . . . . Robot Analysis Total . | . . . . . . . . Derelict Logs Recovered 1 | . . 1 . . . . . Drone Launches . | . . . . . . . . Drone Recoveries . | . . . . . . . . Exploration | -11 -10 -10 -9 -8 -7 -6 -5 ------------- Run | Yrd Mat Min Mat Mat Fac Fac Fac Turns Passed 3236 | 30 33 223 305 804 964 440 437 Spaces Moved 2021 | 53 65 397 163 362 537 267 177 Core 549 | 53 65 397 34 . . . . Treads 1472 | . . . 129 362 537 267 177 Legs . | . . . . . . . . Wheels . | . . . . . . . . Hover . | . . . . . . . . Flight . | . . . . . . . . Fastest Speed 50 | 50 50 50 50 152 152 160 160 Average Speed 128 | 50 50 50 140 156 154 160 165 Slowest Speed 240 | 50 50 50 160 160 160 160 240 Overloaded Moves . | . . . . . . . . Propulsion Burnouts . | . . . . . . . . Robots Hopped . | . . . . . . . . Potential Cave-ins . | . . . . . . . . Cave-ins Triggered . | . . . . . . . . Exploration Rate (%) 19 | 3 15 46 17 38 19 8 7 Regions Visited 7 Branch Regions 1 Pre-discovered Areas 1 | . . 1 . . . . . Known Exits Taken . | . . . . . . . . Unknown Exits Taken 7 | 1 1 1 1 1 1 1 . Scrap Searched . | . . . . . . . . Spaces Dug . | . . . . . . . . Terrain Destroyed 1 | . . . . . 1 . . Melee . | . . . . . . . . Projectile 1 | . . . . . 1 . . AOE . | . . . . . . . . Terrain Rammed . | . . . . . . . . Walls Destroyed . | . . . . . . . . Machines Disabled . | . . . . . . . . Actions | -11 -10 -10 -9 -8 -7 -6 -5 --------- Run | Yrd Mat Min Mat Mat Fac Fac Fac Total 2334 | 55 64 420 196 468 621 275 235 Wait 115 | . . 23 2 32 36 . 22 Move 2014 | 52 64 396 162 361 536 266 177 Hop . | . . . . . . . . Pick Up 16 | 3 . 1 3 2 4 2 1 Fast Attach 19 | . . . 5 4 7 1 2 Attach 6 | . . . 3 3 . . . Detach . | . . . . . . . . Swap 19 | . . . 2 9 6 1 1 Drop 29 | . . . 1 9 14 3 2 Fire 116 | . . . 18 48 18 2 30 Melee . | . . . . . . . . Ram . | . . . . . . . . Kick . | . . . . . . . . Crush . | . . . . . . . . Escape Stasis . | . . . . . . . . Rewire . | . . . . . . . . Trap . | . . . . . . . . Miscellaneous . | . . . . . . . . Route ------- -11/Scrapyard -10/Materials -10/Mines -9/Materials (discovered 2 exits: *Mat / [*Min]) -8/Materials (discovered 2 exits: *Fac / [*Sto]) -7/Factory -6/Factory -5/Factory History --------- Turn | Location | Event 4 | -11/Scrapyard | Discovered new exit (range 14) 31 | -11/Scrapyard | Entered Materials 56 | -10/Materials | Discovered new exit (range 16) 64 | -10/Materials | Entered Mines 110 | -10/Mines | Discovered new exit (range 15) 117 | -10/Mines | Received a Rocket Launcher from a helpful Derelict 170 | -10/Mines | Learned location of Zion (-6) 287 | -10/Mines | Entered Materials 287 | -9/Materials | Evolved 2 slots: Weapon x2 352 | -9/Materials | Discovered new exit (range 14) 562 | -9/Materials | Discovered new exit (range 10) 592 | -9/Materials | Entered another Materials area 592 | -8/Materials | Evolved 2 slots: Weapon x2 862 | -8/Materials | Build established: Scavenger-Executioner 1361 | -8/Materials | Discovered new exit (range 10) 1379 | -8/Materials | Discovered new exit (range 8) 1396 | -8/Materials | Entered Factory 1396 | -7/Factory | Evolved 2 slots: Utility x2 2200 | -7/Factory | Discovered new exit (range 14) 2360 | -7/Factory | Entered another Factory area 2360 | -6/Factory | Evolved 2 slots: Propulsion x2 2766 | -6/Factory | Discovered new exit (range 6) 2800 | -6/Factory | Entered another Factory area 2800 | -5/Factory | Evolved 2 slots: Utility x2 3237 | -5/Factory | Self-destructed Last Messages --------------- Slug penetrates R-10 Processor. Acquired 7 matter. K-01 Serf collects debris. Acquired 1 matter. Variable Charge Gun destroyed. Slug penetrates S-27 Virus. S-27 Virus destroyed. Deuterium Engine destroyed. S-27 Virus destroyed. Switching to secondary target: S-27 Virus. Slug penetrates S-27 Virus. S-27 Virus destroyed. S-27 Virus suffers critical hit (Burn). Lgt. Nuclear Core melted. S-27 Virus destroyed. Switching to secondary target: S-27 Virus. Slug penetrates S-27 Virus. S-27 Virus destroyed. R-10 Processor collects Autogun. K-01 Serf collects debris. Map ----- +----------------------------------------------------+ | ?????????????????????????????????????????????????? | | ?????????????????????????????????????????????????? | | ?????????????????????????????????????????????????? | | ?????????????????????????????????????????????????? | | ?????????????????????????????????????????????????? | | ?????????????????????????????????????????????????? | | ?????????????????????????????????????????????????? | | ?????????????????????????????????????????????????? | | ?????????????????????????????????????????????????? | | ?#???????????????????????????????????????????????? | | ####????????????????????????????????????????????? | | ?????????????????????????????????????????? | | ?????????????????????????????????????????? | | "" ????????????????????????????????????????? | | % ???????????????????????????????????????? | | "" "??????????????????????????????????????? | | ??????????????????????????????????????? | | "" "?????????????####?????????????????????? | | #?????????????# !?????????????????????? | | #?????????????# ????????????????????? | | #?????????????# """"""" #??????????????? | | #?????????????# """"""" #??????????????? | | #?????????????# """"""" #??????????????? | | ##############???????# """""" #??????????????? | | # #???????# % = #??????????????? | | # #???????#@kk%R% !#??? ???????? | | # ! #???????##k##R##### ??????? | | # = #????????# ??????? | | + ##########! Rk ??????? | | # # # """" ??????? | | # # * % /% ""F" ???????? | | # # # "" ???????? | | # # % # ???????? | | # # # ???????? | | # # # """"""""" ?????? | | # # # ?????? | | ####+######### % # ?????? | | #??# #???????# # #############?????????? | | #### ############/##### #?????????????????????? | | % %#?????????????????????? | | ####?????????????????????? | | #????????????????????????? | | #????????????????????????? | | %% #????????????????????????? | | ##################+###????????????????????????? | | ????????????????? ?????????????????????????? | | ????????????????? ???????????????????????? | | ?????????????????""""""? ?????????????????????? | | ??????????????????""?""" ?? #????????????????????? | | ???????????????????"?""" ???????????????????????? | +----------------------------------------------------+ Best States ------------- Heat Dissipation 116 Coolant Potential 65 Energy Generation 14 Energy Capacity 275 Matter Stores 300 Matter Capacity 300 Sight Range 16 Terrain Scan Density 10 Resistance: KI 20 Resistance: TH 20 Resistance: EX 20 Resistance: EM 20 Resistance: I 20 Resistance: S 20 Resistance: P 20 Evasion (%) 50 Recoil Reduction 3 Offensive Hacking 10 Item Schematics ----------------- None Robot Schematics ------------------ None Fabricated ------------ Nothing Repaired ---------- Nothing Alien Tech Used ----------------- None Achievements -------------- None Challenges ------------ None Game ------ Seed NavigationStealthStripper Manual? 0 Play Time 00:20:27 Cumulative 195.1 hours Start 2025.05.24 @ 16:19:00 End 2025.05.24 @ 17:25:34 Sessions 5 Manual Loads 0 Difficulty Adventurer Special Mode None Game No. 196 Rogue 18 Adventurer 167 Explorer 11 Win Type - Total 51 Types 13/0/14/2/12/0/4/1/0/5 Lore% 47 Gallery% 47 Achievement% 67 Wizard Run 0 Options --------- Layout 0 ASCII 0 Keyboard 0 Movement Mouse Keybinds 0 Fullscreen 2 Font 12/Smallcaps Map View 83x54 Zoom Use 0% Tactical HUD 0 Map Filters NONE Filters NONE Steam X RUN: 088d4315-7d43-4d36-9386-906ba9dce6cf